fUST/lending_fUST_20260421
["ID","MTS","AMOUNT","RATE_DAILY","PERIOD"]
[420915815,1776719450009,-914.91248,0.00013699,2]
[420915816,1776719450019,-914.91248,0.00013699,2]
[420915817,1776719450028,-914.91248,0.00013699,2]
[420915818,1776719450038,-914.91248,0.00013699,2]
[420915819,1776719450048,-914.91248,0.00013699,2]
[420915820,1776719450058,-914.91248,0.00013699,2]
[420915821,1776719450068,-914.91248,0.00013699,2]
[420915822,1776719450077,-914.91248,0.00013699,2]
[420915823,1776719450087,-914.91248,0.00013699,2]
[420915824,1776719450097,-914.91248,0.00013699,2]
[420915825,1776719450106,-914.91248,0.00013699,2]
[420915826,1776719450116,-914.91248,0.00013699,2]
[420915827,1776719450125,-914.91248,0.00013699,2]
[420915828,1776719450135,-914.91248,0.00013699,2]
[420915829,1776719450145,-914.91248,0.00013699,2]
[420915830,1776719450154,-914.91247,0.00013699,2]
[420915831,1776719450164,-506.870384,0.00013699,2]
[420915832,1776719450174,-506.870384,0.00013699,2]
[420915833,1776719450183,-506.870384,0.00013699,2]
[420915834,1776719450195,-506.870384,0.00013699,2]
[420915835,1776719450205,-506.870384,0.00013699,2]
[420915836,1776719450214,-506.870384,0.00013699,2]
[420915837,1776719450224,-506.870384,0.00013699,2]
[420915838,1776719450233,-506.870384,0.00013699,2]
[420915839,1776719450243,-506.870384,0.00013699,2]
[420915840,1776719450254,-506.870384,0.00013699,2]
[420915841,1776719450264,-506.870384,0.00013699,2]
[420915842,1776719450274,-506.870384,0.00013699,2]
[420915843,1776719450284,-506.870384,0.00013699,2]
[420915844,1776719450294,-506.870384,0.00013699,2]
[420915845,1776719450304,-506.870384,0.00013699,2]
[420915846,1776719450314,-506.870384,0.00013699,2]
[420915847,1776719450323,-506.870384,0.00013699,2]
[420915848,1776719450333,-506.870384,0.00013699,2]
[420915849,1776719450342,-506.870384,0.00013699,2]
[420915850,1776719450351,-506.870392,0.00013699,2]
[420915851,1776719450360,-610.268658,0.00013699,2]
[420915852,1776719450370,-610.268658,0.00013699,2]
[420915853,1776719450379,-610.268658,0.00013699,2]
[420915854,1776719450388,-610.268658,0.00013699,2]
[420915855,1776719450397,-610.268658,0.00013699,2]
[420915856,1776719450407,-610.268658,0.00013699,2]
[420915857,1776719450416,-610.268658,0.00013699,2]
[420915858,1776719450426,-610.268658,0.00013699,2]
[420915859,1776719450435,-610.268658,0.00013699,2]
[420915860,1776719450445,-610.268658,0.00013699,2]
[420915861,1776719450454,-610.268658,0.00013699,2]
[420915862,1776719450464,-610.268658,0.00013699,2]
[420915863,1776719450473,-610.268658,0.00013699,2]
[420915864,1776719450482,-610.268658,0.00013699,2]
[420915865,1776719450492,-610.268658,0.00013699,2]
[420915866,1776719450502,-610.268658,0.00013699,2]
[420915867,1776719450511,-610.268658,0.00013699,2]
[420915868,1776719450520,-610.268658,0.00013699,2]
[420915869,1776719450530,-610.268658,0.00013699,2]
[420915870,1776719450539,-610.268665,0.00013699,2]
[420915871,1776719450548,-159.793208,0.00013699,2]
[420915872,1776719450558,-259.05536,0.00013699,2]
[420915873,1776719450567,-259.05536,0.00013699,2]
[420915874,1776719450576,-259.05536,0.00013699,2]
[420915875,1776719450585,-259.05536,0.00013699,2]
[420915876,1776719450595,-259.05536,0.00013699,2]
[420915877,1776719450604,-259.05536,0.00013699,2]
[420915878,1776719450613,-259.05536,0.00013699,2]
[420915879,1776719450622,-259.05536,0.00013699,2]
[420915880,1776719450631,-259.05536,0.00013699,2]
[420915881,1776719450640,-259.05536,0.00013699,2]
[420915882,1776719450649,-259.05536,0.00013699,2]
[420915883,1776719450659,-259.05536,0.00013699,2]
[420915884,1776719450670,-259.05536,0.00013699,2]
[420915885,1776719450679,-259.05536,0.00013699,2]
[420915886,1776719450688,-259.05536,0.00013699,2]
[420915887,1776719450697,-259.05536,0.00013699,2]
[420915888,1776719450707,-259.05536,0.00013699,2]
[420915889,1776719450716,-259.05536,0.00013699,2]
[420915890,1776719450726,-329.187714,0.00013699,2]
[420915891,1776719450736,-259.05536,0.00013699,2]
[420915892,1776719450745,-329.187714,0.00013699,2]
[420915893,1776719450755,-259.055363,0.00013699,2]
[420915894,1776719450765,-329.187714,0.00013699,2]
[420915895,1776719450776,-329.187714,0.00013699,2]
[420915896,1776719450786,-329.187714,0.00013699,2]
[420915897,1776719450796,-329.187714,0.00013699,2]
[420915898,1776719450809,-329.187714,0.00013699,2]
[420915899,1776719450820,-329.187714,0.00013699,2]
[420915900,1776719450830,-329.187714,0.00013699,2]
[420915901,1776719450840,-329.187714,0.00013699,2]
[420915902,1776719450851,-329.187714,0.00013699,2]
[420915903,1776719450861,-329.187714,0.00013699,2]
[420915904,1776719450875,-329.187714,0.00013699,2]
[420915905,1776719450888,-329.187714,0.00013699,2]
[420915906,1776719450898,-329.187714,0.00013699,2]
[420915907,1776719450909,-329.187714,0.00013699,2]
[420915908,1776719450920,-329.187714,0.00013699,2]
[420915909,1776719450930,-329.187714,0.00013699,2]
[420915910,1776719450941,-329.187714,0.00013699,2]
[420915911,1776719450952,-329.187715,0.00013699,2]
[420915912,1776719450963,-1906.153926,0.00013699,2]
[420915913,1776719450978,-1906.153926,0.00013699,2]
[420915914,1776719450989,-1906.153926,0.00013699,2]
[420915915,1776719450999,-1906.153926,0.00013699,2]
[420915916,1776719451010,-1906.153926,0.00013699,2]
[420915917,1776719451019,-1906.153926,0.00013699,2]
[420915918,1776719451029,-1906.153926,0.00013699,2]
[420915919,1776719451039,-1906.153926,0.00013699,2]
[420915920,1776719451051,-1906.153926,0.00013699,2]
[420915921,1776719451061,-1906.153926,0.00013699,2]
[420915922,1776719451071,-1906.153926,0.00013699,2]
[420915923,1776719451081,-814.821552,0.00013699,2]
[420915924,1776719451090,-814.821552,0.00013699,2]
[420915925,1776719451100,-1906.153926,0.00013699,2]
[420915926,1776719451110,-1906.153926,0.00013699,2]
[420915927,1776719451120,-439.07434143,0.00013699,2]
[420915928,1776719451143,-375.74721057,0.00013699,2]
[420915929,1776719451153,-1906.153926,0.00013699,2]
[420915930,1776719451162,-814.821552,0.00013699,2]
[420915931,1776719451172,-1380.22731143,0.00013699,2]
[420915932,1776719451196,-510.66,0.00013698,2]
[420915933,1776719451206,-525.92661457,0.00013699,2]
[420915934,1776719451216,-814.821552,0.00013699,2]
[420915935,1776719451225,-1906.153926,0.00013699,2]
[420915936,1776719451235,-814.821552,0.00013699,2]
[420915937,1776719451244,-1906.153926,0.00013699,2]
[420915938,1776719451254,-814.821552,0.00013699,2]
[420915939,1776719451263,-539.70423973,0.00013699,2]
[420915990,1776720638498,-2388.52203495,6.195e-05,2]
[420915991,1776720638510,-1266.73796497,6.195e-05,2]
[420915992,1776720638519,-2859.91455337,6.258e-05,2]
[420915993,1776720638530,-690.44241782,6.258e-05,2]
[420915994,1776720638542,-1449.64302881,6.258e-05,2]
[420915995,1776720638551,-1200.0,6.384e-05,2]
[420915996,1776720638561,-181.34319109,6.481e-05,2]
[420915997,1776720638570,-2205.31289577,6.849e-05,2]
[420915998,1776720638665,-2791.68710423,6.849e-05,2]
[420915999,1776720638674,-213.98496549,8.481e-05,2]
[420916000,1776720638683,-246.62673989,0.00010481,2]
[420916001,1776720638692,-15380.3736,0.00010959,2]
[420916002,1776720638701,-150.0,0.0001096,2]
[420916003,1776720638711,-159.18,0.0001096,2]
[420916004,1776720638720,-168.37,0.0001126,2]
[420916005,1776720638729,-206.7354264,0.00011785,2]
[420916006,1776720638739,-1957.856,0.00012023,2]
[420916007,1776720638748,-2150.738,0.00012023,2]
[420916008,1776720638757,-225.46210187,0.00012078,2]
[420916009,1776720638766,-1408.0,0.00012322,2]
[420916010,1776720638776,-645.0,0.00012322,2]
[420916011,1776720638785,-441.0,0.00012322,2]
[420916012,1776720638794,-739.0,0.00012322,2]
[420916013,1776720638804,-184.0,0.00012322,2]
[420916014,1776720638814,-2953.69568842,0.00012357,2]
[420916015,1776720638823,-279.26851428,0.00012481,2]
[420916016,1776720638832,-2230.315306,0.00012571,2]
[420916017,1776720638842,-352316.73753028,0.00012846,2]
[420916018,1776720638851,-6777.42462826,0.000129,2]
[420916019,1776720638860,-6777.42462826,0.000129,2]
[420916020,1776720638869,-160.0,0.00012946,2]
[420916021,1776720638878,-151.0,0.00013011,2]
[420916022,1776720638888,-445.202766,0.00013011,2]
[420916023,1776720638897,-162.380719,0.00013011,2]
[420916024,1776720638906,-303.10151341,0.00013011,2]
[420916025,1776720638916,-537.6845,0.00013011,2]
[420916026,1776720638925,-415546.55965157,0.00013019,2]
[420916484,1776720646718,-821.0,0.00012893,2]
[420916485,1776720646727,-4087.13524957,0.00013019,2]
[420916487,1776720646738,-4642.358051,0.00013019,2]
[420916489,1776720646940,-5000.0,0.00013019,2]
[420916763,1776721838674,-5000.0,0.00011643,2]
[420916764,1776721838684,-180.2113604,0.0001176,2]
[420916765,1776721838694,-2027.0533749,0.00011939,2]
[420916766,1776721838703,-645.0,0.00012254,2]
[420916767,1776721838900,-232.597,0.00012254,2]
[420916768,1776721838909,-210.775,0.00012254,2]
[420916769,1776721838918,-325.3138637,0.00012398,2]
[420916770,1776721838928,-150.0,0.00012653,2]
[420916771,1776721838937,-1663.4072798,0.00012785,2]
[420916772,1776721838947,-154.425852,0.00012785,2]
[420916773,1776721838956,-15887.2276246,0.00012785,2]
[420916774,1776721838965,-971.06979853,0.00012792,2]
[420916775,1776721838974,-500.0,0.00012817,2]
[420916776,1776721838984,-182.21774351,0.00012817,2]
[420916777,1776721838993,-500.0,0.00012817,2]
[420916778,1776721839002,-500.0,0.00012817,2]
[420916779,1776721839011,-500.0,0.00012817,2]
[420916780,1776721839020,-500.0,0.00012817,2]
[420916781,1776721839030,-500.0,0.00012817,2]
[420916782,1776721839039,-500.0,0.00012817,2]
[420916783,1776721839048,-500.0,0.00012817,2]
[420916784,1776721839057,-500.0,0.00012817,2]
[420916785,1776721839067,-500.0,0.00012817,2]
[420916786,1776721839076,-500.0,0.00012817,2]
[420916787,1776721839085,-500.0,0.00012817,2]
[420916788,1776721839095,-500.0,0.00012817,2]
[420916789,1776721839105,-500.0,0.00012817,2]
[420916790,1776721839115,-500.0,0.00012817,2]
[420916791,1776721839124,-500.0,0.00012817,2]
[420916792,1776721839133,-500.0,0.00012817,2]
[420916793,1776721839143,-500.0,0.00012817,2]
[420916794,1776721839152,-500.0,0.00012817,2]
[420916795,1776721839162,-500.0,0.00012817,2]
[420916796,1776721839171,-481.6050569,0.00012817,2]
[420916797,1776721839181,-500.0,0.00012817,2]
[420916798,1776721839190,-500.0,0.00012817,2]
[420916799,1776721839200,-500.0,0.00012818,2]
[420916800,1776721839209,-500.0,0.00012818,2]
[420916801,1776721839218,-393.27791837,0.00012818,2]
[420916802,1776721839228,-500.0,0.00012818,2]
[420916803,1776721839237,-500.0,0.00012818,2]
[420916804,1776721839246,-500.0,0.00012818,2]
[420916805,1776721839256,-500.0,0.00012818,2]
[420916806,1776721839265,-500.0,0.00012818,2]
[420916807,1776721839275,-500.0,0.00012818,2]
[420916808,1776721839284,-500.0,0.00012818,2]
[420916809,1776721839294,-500.0,0.00012818,2]
[420916810,1776721839303,-500.0,0.00012818,2]
[420916811,1776721839313,-373.41187246,0.00012818,2]
[420916812,1776721839322,-500.0,0.00012818,2]
[420916813,1776721839331,-500.0,0.00012818,2]
[420916814,1776721839340,-500.0,0.00012818,2]
[420916815,1776721839350,-500.0,0.00012818,2]
[420916816,1776721839360,-500.0,0.00012818,2]
[420916817,1776721839369,-500.0,0.00012818,2]
[420916818,1776721839379,-500.0,0.00012818,2]
[420916819,1776721839389,-500.0,0.00012818,2]
[420916820,1776721839398,-250.0,0.00012818,2]
[420916821,1776721839407,-500.0,0.00012818,2]
[420916822,1776721839416,-500.0,0.00012818,2]
[420916823,1776721839426,-500.0,0.00012818,2]
[420916824,1776721839435,-13193.95644756,0.00012819,2]
[420916825,1776721839451,-1136.54756164,0.00012819,2]
[420916826,1776721839461,-6914.14089951,0.00012819,2]
[420916827,1776721839472,-401383.10896532,0.00012819,2]
[420916828,1776721839484,-2321.11164033,0.00012819,2]
[420916886,1776721846624,-26782.33033567,0.00012819,2]
[420916977,1776723032783,-1728.43983572,5.081e-05,2]
[420916979,1776723032793,-5000.0,5.132e-05,2]
[420916981,1776723032803,-552.0,5.183e-05,2]
[420916983,1776723032812,-3655.25999992,5.184e-05,2]
[420916985,1776723032821,-191.27855966,5.21e-05,2]
[420916987,1776723032830,-166.7359115,5.732e-05,2]
[420916989,1776723032840,-225.7087004,7.21e-05,2]
[420916991,1776723032849,-4690.75964179,7.6e-05,2]
[420917056,1776723039006,-5000.0,5.03e-05,2]
[420917057,1776723039016,-11356.46026445,7.6e-05,2]
[420917058,1776723039025,-402.172033,8e-05,2]
[420917059,1776723039035,-500.0,9e-05,2]
[420917060,1776723039044,-260.13884114,9.21e-05,2]
[420917061,1776723039053,-500.0,9.3e-05,2]
[420917062,1776723039062,-2489.94730592,0.000106,2]
[420917063,1776723039071,-500.0,0.00011,2]
[420917064,1776723039081,-294.56898187,0.0001121,2]
[420917065,1776723039090,-645.0,0.00012254,2]
[420917066,1776723039099,-325.2552397,0.00012299,2]
[420917067,1776723039108,-325.3138637,0.00012299,2]
[420917068,1776723039117,-455.7290828,0.00012299,2]
[420917069,1776723039126,-325.2970195,0.00012299,2]
[420917070,1776723039135,-310.71248431,0.00012363,2]
[420917071,1776723039144,-1241.60708732,0.00012363,2]
[420917072,1776723039153,-386.664,0.00012562,2]
[420917073,1776723039162,-187.878,0.00012562,2]
[420917074,1776723039171,-11458.07936079,0.00012619,2]
[420917111,1776723043864,-739.0,0.00012254,2]
[420917112,1776723043874,-2.48,0.00012254,2]
[420917113,1776723046889,-181.52,0.00012254,2]
[420917114,1776723046898,-101840.1738058,0.00012619,2]
[420917115,1776723047099,-1260.13155678,0.00012619,2]
[420917123,1776723188470,500.0,0.00026269,120]
[420917124,1776723188729,413.77,0.00026269,120]
[420917125,1776723191630,500.0,0.00026269,120]
[420917128,1776723226445,500.0,0.00026269,120]
[420917129,1776723226678,402.15,0.00026269,120]
[420917130,1776723242508,500.0,0.00026269,120]
[420917131,1776723242760,500.0,0.00026269,120]
[420917132,1776723242998,500.0,0.00026269,120]
[420917133,1776723243246,500.0,0.00026269,120]
[420917134,1776723243567,500.0,0.00026269,120]
[420917135,1776723243801,500.0,0.00026269,120]
[420917136,1776723244042,500.0,0.00026269,120]
[420917137,1776723244279,500.0,0.00026269,120]
[420917138,1776723244523,247.05,0.00026269,120]
[420917139,1776723266497,500.0,0.00026269,120]
[420917140,1776723266721,221.51261624,0.00026269,120]
[420917142,1776723298763,500.0,0.00026269,120]
[420917144,1776723357970,405.70459111,0.00026269,120]
[420917146,1776723419118,500.0,0.00026269,120]
[420917147,1776723469605,500.0,0.00026263,120]
[420917149,1776723487494,500.0,0.00026263,120]
[420917150,1776723487766,500.0,0.00026263,120]
[420917156,1776723747216,173.0,0.00024114,120]
[420917165,1776724106341,1010.56550313,0.0002627,120]
[420917193,1776724231946,-355.71045177,0.0001024,2]
[420917195,1776724231959,-742.54022415,0.0001024,2]
[420917196,1776724231970,-521.0,0.0001024,2]
[420917198,1776724231979,-188.78765615,0.00010292,2]
[420917200,1776724231988,-3688.71136268,0.00010343,2]
[420917202,1776724231999,-334.45923056,0.00010343,2]
[420917411,1776724238264,-976.82940676,0.00010343,2]
[420917412,1776724238275,-343.71383964,0.000106,2]
[420917413,1776724238284,-536.32292318,0.000106,2]
[420917414,1776724238297,-837.15758002,0.000106,2]
[420917415,1776724238307,-155.65339646,0.000106,2]
[420917416,1776724238317,-950.28697849,0.00010964,2]
[420917417,1776724238327,-2249.29483926,0.00011064,2]
[420917418,1776724238337,-2894.49023596,0.00011187,2]
[420917419,1776724238347,-3548.30270002,0.00011264,2]
[420917420,1776724238356,-4769.10063322,0.00011287,2]
[420917421,1776724238372,-1240.35506686,0.00011287,2]
[420917422,1776724238382,-161.523221,0.00011316,2]
[420917423,1776724238392,-2569.0832668,0.00011323,2]
[420917424,1776724238403,-4059.84347952,0.00011364,2]
[420917425,1776724238413,-6693.36118779,0.00011387,2]
[420917426,1776724238423,-187.87956855,0.00011387,2]
[420917427,1776724238432,-309.331,0.00011387,2]
[420917428,1776724238442,-4847.31056078,0.00011464,2]
[420917429,1776724238452,-455.7290828,0.00011477,2]
[420917430,1776724238462,-500.0,0.00011482,2]
[420917431,1776724238472,-500.0,0.00011482,2]
[420917432,1776724238482,-888.45812833,0.00011482,2]
[420917433,1776724238491,-500.0,0.00011486,2]
[420917434,1776724238503,-500.0,0.00011486,2]
[420917435,1776724238512,-438.53261356,0.00011486,2]
[420917436,1776724238523,-500.0,0.00011486,2]
[420917437,1776724238533,-500.0,0.00011486,2]
[420917438,1776724238542,-563.12750295,0.00011486,2]
[420917439,1776724238552,-500.0,0.00011486,2]
[420917440,1776724238562,-500.0,0.00011486,2]
[420917441,1776724238572,-7127.57289813,0.00011487,2]
[420917442,1776724238581,-4904.08496481,0.00011564,2]
[420917443,1776724238591,-7377.26667558,0.00011587,2]
[420917444,1776724238600,-110.23238083,0.00011687,2]
[420917445,1776724238612,-811.51114452,0.00011687,2]
[420917751,1776724242968,-3980.54937266,0.00011687,2]
[420917758,1776724243027,-695.46419098,0.00011687,2]
[420917760,1776724243038,-2463.41507438,0.00011687,2]
[420917762,1776724243048,-5989.3668257,0.00011764,2]
[420917764,1776724243057,-5546.08644637,0.00011787,2]
[420917766,1776724243068,-1372.56330807,0.00011787,2]
[420917768,1776724243079,-1826.42789672,0.00011787,2]
[420917770,1776724243088,-222.76943426,0.00012292,2]
[420917772,1776724243098,-994.69978946,0.00012358,2]
[420917777,1776724243137,-414.30021054,0.00012358,2]
[420917779,1776724243146,-481.36295817,0.00012413,2]
[420917782,1776724243158,-997.11604343,0.00012413,2]
[420917784,1776724243167,-3406.268715,0.00012413,2]
[420917786,1776724243176,-4799.2308649,0.00012413,2]
[420917788,1776724243186,-500.0,0.00012418,2]
[420917790,1776724243196,-330.46391868,0.00012418,2]
[420917792,1776724243205,-500.0,0.00012418,2]
[420917794,1776724243215,-500.0,0.00012418,2]
[420917796,1776724243224,-500.0,0.00012418,2]
[420917798,1776724243234,-500.0,0.00012418,2]
[420917800,1776724243244,-500.0,0.00012418,2]
[420917802,1776724243253,-500.0,0.00012418,2]
[420917804,1776724243263,-500.0,0.00012418,2]
[420917806,1776724243274,-500.0,0.00012418,2]
[420917808,1776724243284,-500.0,0.00012418,2]
[420917810,1776724243294,-500.0,0.00012418,2]
[420917812,1776724243303,-500.0,0.00012418,2]
[420917814,1776724243313,-500.0,0.00012418,2]
[420917816,1776724243324,-500.0,0.00012418,2]
[420917818,1776724243334,-500.0,0.00012418,2]
[420917820,1776724243344,-500.0,0.00012418,2]
[420917822,1776724243353,-500.0,0.00012418,2]
[420917824,1776724243363,-500.0,0.00012418,2]
[420917826,1776724243373,-638.85682073,0.00012418,2]
[420917829,1776724243383,-500.0,0.00012418,2]
[420917831,1776724243393,-550.0,0.00012418,2]
[420917833,1776724243402,-500.0,0.00012418,2]
[420917835,1776724243412,-500.0,0.00012418,2]
[420917837,1776724243421,-500.0,0.00012418,2]
[420917839,1776724243432,-500.0,0.00012418,2]
[420917841,1776724243442,-500.0,0.00012418,2]
[420917843,1776724243452,-500.0,0.00012418,2]
[420917844,1776724243461,-4296.25084887,0.00012419,2]
[420917847,1776724243472,-674.46335809,0.00012419,2]
[420917966,1776724246098,-5000.0,0.00012294,2]
[420917968,1776724246108,-9971.62145355,0.00012419,2]
[420917970,1776724246120,-8616.65914692,0.00012419,2]
[420917973,1776724246131,-27524.50914761,0.00012419,2]
[420918007,1776724317891,501.9,0.0002627,120]
[420918010,1776724429001,500.0,0.0002627,120]
[420918011,1776724429239,500.0,0.0002627,120]
[420918012,1776724429463,500.0,0.0002627,120]
[420918013,1776724429691,500.0,0.0002627,120]
[420918014,1776724429923,500.0,0.0002627,120]
[420918015,1776724430144,500.0,0.0002627,120]
[420918016,1776724430369,500.0,0.0002627,120]
[420918017,1776724430595,500.0,0.0002627,120]
[420918018,1776724430923,500.0,0.0002627,120]
[420918019,1776724431170,500.0,0.0002627,120]
[420918020,1776724431413,500.0,0.0002627,120]
[420918021,1776724431643,500.0,0.0002627,120]
[420918022,1776724431878,500.0,0.0002627,120]
[420918023,1776724432155,452.04972804,0.0002627,120]
[420918030,1776724455867,500.0,0.0002627,120]
[420918031,1776724456105,500.0,0.0002627,120]
[420918032,1776724456338,187.71,0.0002627,120]
[420918034,1776724691490,500.0,0.00026269,120]
[420918035,1776724885878,443.33095575,0.00026269,120]
[420918036,1776724890044,4164.5,0.00026269,120]
[420918050,1776725432120,-4791.99579818,5.358e-05,2]
[420918270,1776725438299,-208.00420182,5.358e-05,2]
[420918272,1776725438309,-216.17081788,5.412e-05,2]
[420918278,1776725438353,-1928.00211669,5.412e-05,2]
[420918280,1776725438364,-840.21160571,5.412e-05,2]
[420918282,1776725438374,-187.36752086,5.606e-05,2]
[420918284,1776725438383,-94.44356809,5.806e-05,2]
[420918286,1776725438394,-71.48748141,5.806e-05,2]
[420918288,1776725438403,-192.33749889,7.606e-05,2]
[420918301,1776725438513,-28.75617572,7.606e-05,2]
[420918303,1776725438523,-254.81982836,9.606e-05,2]
[420918305,1776725438532,-288.54598212,0.00011606,2]
[420918307,1776725438540,-4311.02290876,0.0001224,2]
[420918309,1776725438549,-1379.8098584,0.00012264,2]
[420918311,1776725438558,-929.6294172,0.00012264,2]
[420918312,1776725438567,-2150.738,0.00012671,2]
[420918313,1776725438577,-5888.0,0.00012679,2]
[420918314,1776725438586,-2424.0,0.00012709,2]
[420918315,1776725438595,-2424.0,0.00012724,2]
[420918316,1776725438605,-280.842,0.00012724,2]
[420918317,1776725438614,-2424.0,0.00012746,2]
[420918318,1776725438623,-2397.39354513,0.00012779,2]
[420918319,1776725438634,-26.60645487,0.00012779,2]
[420918320,1776725438643,-500.0,0.00012786,2]
[420918321,1776725438653,-213.06571399,0.00012796,2]
[420918322,1776725438662,-461.67526834,0.00012796,2]
[420918323,1776725438671,-557.5788265,0.00012796,2]
[420918324,1776725438680,-151.0,0.000128,2]
[420918325,1776725438689,-1013.94081092,0.00012804,2]
[420918326,1776725438700,-28159.20961013,0.00012804,2]
[420918389,1776725440664,-2915.03903928,0.00012804,2]
[420918486,1776725443329,-441.0,0.00012469,2]
[420918487,1776725443338,-9971.76468092,0.00012804,2]
[420918488,1776725443350,-4574.14783359,0.00012804,2]
[420918493,1776725446330,-15994.39811296,0.00012804,2]
[420918494,1776725446342,-782.96692839,0.00012804,2]
[420918495,1776725453194,500.0,0.00026269,120]
[420918496,1776725564410,216.60442093,0.00026269,120]
[420918497,1776725564670,187.30751408,0.00026269,120]
[420918498,1776725564723,216.60442093,0.00026269,120]
[420918499,1776725565044,216.60442093,0.00026269,120]
[420918500,1776725572102,648.27,0.00026269,120]
[420918501,1776725642247,393.42544504,0.00026269,120]
[420918502,1776725684717,187.30751407,0.00026269,120]
[420918505,1776725817435,623.92,0.00026269,120]
[420918506,1776725857767,500.0,0.00026265,120]
[420918510,1776726061600,-1358.12990882,7.6e-05,2]
[420918511,1776726088184,196.0,0.00026265,120]
[420918512,1776726117520,168.0,0.00024657,120]
[420918513,1776726532909,519.32407722,0.00026265,120]
[420918578,1776726638835,-1784.99148213,7.063e-05,2]
[420918579,1776726638845,-520.0,7.063e-05,2]
[420918580,1776726638855,-5000.0,7.134e-05,2]
[420918581,1776726638864,-557.844077,7.206e-05,2]
[420918582,1776726638875,-179.35268231,7.337e-05,2]
[420918583,1776726638884,-5221.47403501,7.358e-05,2]
[420918584,1776726638893,-300.0,7.373e-05,2]
[420918585,1776726638903,-557.844077,7.509e-05,2]
[420918586,1776726638912,-11259.90072022,7.558e-05,2]
[420918587,1776726638921,-6252.45700794,7.6e-05,2]
[420918588,1776726638930,-1519.84464564,7.658e-05,2]
[420918615,1776726643327,-4381.22301545,7.658e-05,2]
[420918683,1776726836947,-5000.0,7.43e-05,2]
[420918684,1776726836969,-311.89000815,7.505e-05,2]
[420918685,1776726836990,-526.0,7.505e-05,2]
[420918686,1776726837014,-191.89643357,7.543e-05,2]
[420918687,1776726837038,-563.48003077,7.658e-05,2]
[420918688,1776726837133,-4066.54951832,7.658e-05,2]
[420918689,1776726857603,4310.58656747,7.581e-05,2]
[420918691,1776726917092,7689.98,0.00026345,120]
[420918693,1776727045887,500.0,0.00026345,120]
[420918694,1776727046101,458.37903967,0.00026345,120]
[420918695,1776727047383,500.0,0.00026345,120]
[420918696,1776727047731,500.0,0.00026345,120]
[420918697,1776727047960,500.0,0.00026345,120]
[420918698,1776727048198,500.0,0.00026345,120]
[420918699,1776727048557,500.0,0.00026345,120]
[420918700,1776727048784,622.32706568,0.00026345,120]
[420918701,1776727049499,191.89643357,7.543e-05,2]
[420918705,1776727241773,837.89000815,7.505e-05,2]
[420918706,1776727302512,500.0,0.00026345,120]
[420918707,1776727303083,500.0,0.00026345,120]
[420918708,1776727303364,500.0,0.00026345,120]
[420918709,1776727303926,499.30026989,0.00026345,120]
[420918710,1776727468718,500.0,0.00026345,120]
[420918730,1776727832596,-4809.66046676,7.28e-05,2]
[420918733,1776727832609,-190.33953324,7.28e-05,2]
[420918735,1776727832620,-104.96973335,7.354e-05,2]
[420918737,1776727832631,-1095.03026665,7.354e-05,2]
[420918739,1776727832640,-524.0,7.354e-05,2]
[420918741,1776727832650,-174.27046676,7.392e-05,2]
[420918788,1776727838739,-449.14612763,7.318e-05,2]
[420918816,1776727839098,-2057.34543065,7.318e-05,2]
[420918817,1776727839108,-13.78803814,7.392e-05,2]
[420918818,1776727839117,-9000.0,7.581e-05,2]
[420918819,1776727839127,-1963.2369234,7.658e-05,2]
[420918820,1776727839136,-12828.68508754,7.758e-05,2]
[420918821,1776727839145,-557.844077,7.813e-05,2]
[420918822,1776727839155,-13728.76754694,7.858e-05,2]
[420918823,1776727839164,-183.0,8.089e-05,2]
[420918824,1776727839173,-557.844077,8.116e-05,2]